Cogmind - Beta 11 X8 @@@ ROGUE MODE // 2021.12.03 @ 00:28:17 Player: Runia Result: Destroyed by 8R-AWN with 8R-AWN's Boregun Performance ------------- Evolutions (1) 500 Regions Visited (5) 1000 Robots Destroyed (84) 420 Value Destroyed (1952) 1952 Prototype IDs (26) 520 Alien Tech Used (0) 0 Bonus (486) 486 TOTAL SCORE: 4878 Bonus ------- High Alert Combat Kills 134 Follower Combat Kills 60 Aligned with FarCom 300 Friendly Fire -8 Cogmind --------- Core Integrity 0/400 Matter 190/300 Energy 145/150 System Corruption 0% Temperature Cool (0) Movement Treading (240) Ox1 Location -9/Exiles Parts ------- > --- POWER (1) -------- Light Angular Momentum Engine > --- PROPULSION (2) --- Light Treads Light Treads > --- UTILITY (3) ------ High-capacity Storage Unit Hardened Light Armor Plating Hardened Light Armor Plating > --- WEAPON (3) ------- Katana > --- INVENTORY (20) --- Improved Ion Engine Armored Wheel Improved Heat Sink High-capacity Matter Pod (200) Chronowheel Rocket Launcher Mini Grenade Launcher Peak State ------------ > --- POWER ------------ Light Angular Momentum Engine > --- PROPULSION ------- Light Treads Armored Wheel > --- UTILITY ---------- High-capacity Storage Unit Medium Armor Plating Hardened Light Armor Plating > --- WEAPON ----------- Light Assault Rifle Light Assault Rifle Heavy Assault Rifle > --- INVENTORY -------- Improved Ion Engine Nuclear Core Reinforced Deuterium Engine Light Fission Core Light Treads Light Treads Light Treads Improved Heat Sink Large Matter Pod High-capacity Matter Pod Hardened Light Armor Plating Hardened Light Armor Plating Chronowheel Heavy Assault Rifle Rocket Launcher Mini Grenade Launcher Plasma Cutter Plasma Cutter Plasma Cutter Katana [Rating: 22] Favorites ----------- Power Ion Engine Engine Ion Engine Power Core Light Nuclear Core Propulsion Light Treads Treads Light Treads Leg Aluminum Leg Wheel Armored Wheel Utility Hardened Light Armor Plating Storage Large Storage Unit Protection Hardened Light Armor Plating Weapon Light Assault Rifle Energy Gun EM Pulse Gun Ballistic Gun Light Assault Rifle Launcher Mini Grenade Launcher Special Weapon Plasma Cutter Slashing Weapon Katana Build | -11 -10 -10 -9 -9 -9 ------- Run | Scr Mat Min Mat Min Exi Slots Evolved 2 | . . . 2 . . Power . | . . . . . . Propulsion . | . . . . . . Utility 1 | . . . 1 . . Weapon 1 | . . . 1 . . Parts Attached 55 | 3 10 6 17 3 16 Power 6 | . 2 2 1 1 . Engine 5 | . 2 1 1 1 . Core 1 | . . 1 . . . Reactor . | . . . . . . Propulsion 11 | 2 2 1 2 1 3 Treads 10 | 2 2 1 1 1 3 Leg . | . . . . . . Wheel 1 | . . . 1 . . Hover . | . . . . . . Flight . | . . . . . . Utility 10 | . 3 . 3 1 3 Device . | . . . . . . Storage 2 | . 1 . . . 1 Processor . | . . . . . . Hackware . | . . . . . . Protection 8 | . 2 . 3 1 2 Artifact . | . . . . . . Weapon 28 | 1 3 3 11 . 10 Energy Gun . | . . . . . . Energy Cannon . | . . . . . . Ballistic Gun 19 | 1 3 3 7 . 5 Ballistic Cannon . | . . . . . . Launcher 4 | . . . 3 . 1 Special Weapon 4 | . . . 1 . 3 Impact Weapon . | . . . . . . Slashing Weapon 1 | . . . . . 1 Piercing Weapon . | . . . . . . Special Melee Weapon . | . . . . . . Unidentified Prototypes 1 | . . . 1 . . Parts Lost 15 | . 1 2 1 . 11 Power . | . . . . . . Propulsion 2 | . . . . . 2 Utility 3 | . 1 . . . 2 Weapon 10 | . . 2 1 . 7 Highest Loss Streak 11 | . 1 1 1 . 11 Average Slot Usage (%) 97 | . 95 99 99 100 97 Engine 10 | . 13 7 9 11 11 Core 1 | . . 6 1 . . Treads 21 | . 27 28 19 11 13 Wheel 3 | . . . 2 11 8 Storage 12 | . 14 14 11 11 11 Protection 17 | . 10 14 22 22 22 Ballistic Gun 28 | . 28 27 31 33 27 Naked Turns . | . . . . . . Heaviest Build 66 | 11 33 33 43 46 66 Greatest Support 40 | 40 40 40 40 12 40 Greatest Overweight (x) 5 | . . . 3 3 5 Average Overweight (x) 1 | . . . 1 3 4 Largest Inventory Capacity 20 | 8 15 15 15 15 20 Average Capacity 15 | 8 13 15 15 15 19 Most Carried 20 | 6 15 15 15 15 20 Average Carried 12 | 3 6 14 12 15 16 Final Capacity 20 | 8 15 15 15 15 20 Final Carried 15 | 1 15 15 15 15 7 Class Distribution -------------------- 47% | Scavenger-Tank 44% | Mutant 5% | Scavenger-Mutant Dominant Class ---------------- Mutant | -10/Materials Mutant | -10/Mines Scavenger-Tank | -9/Materials Scavenger-Tank | -9/Mines Scavenger-Tank | -9/Exiles Resources | -11 -10 -10 -9 -9 -9 ----------- Run | Scr Mat Min Mat Min Exi Matter Collected 1674 | 193 598 137 513 102 131 Remotely . | . . . . . . Salvage Created 2490 | . 713 317 1315 143 2 Parts 182 | . 50 18 102 12 . Haulers Intercepted 3 | . 2 . 1 . . Recyclers Shooed 3 | . 2 . 1 . . Parts Field Recycled . | . . . . . . Retrieved Matter . | . . . . . . Parts Self-Destructed . | . . . . . . Prevented . | . . . . . . Kills | -11 -10 -10 -9 -9 -9 ------- Run | Scr Mat Min Mat Min Exi Combat Hostiles Destroyed 62 | . 16 9 31 3 3 Guns 47 | . 16 9 19 3 . AOE 15 | . . . 12 . 3 Classes Destroyed 13 | . 7 . 5 . 1 Worker 6 | . 1 . 4 1 . Builder 6 | . 1 . 5 . . Tunneler 1 | . 1 . . . . Hauler 3 | . 2 . 1 . . Recycler 5 | . 2 . 3 . . Operator 2 | . . . 2 . . Watcher 2 | . . . 2 . . Swarmer 17 | . 8 3 6 . . Grunt 35 | . 8 6 19 2 . Duelist 3 | . . . 2 1 . Protector 1 | . . . 1 . . Sentry 3 | . . . 3 . . Assembled 3 | . . . . . 3 Best Kill Streak 13 | . 6 3 13 3 3 Combat Bots Only 7 | . 6 3 7 3 3 Max Kills in Single Turn 6 | . 1 1 6 1 2 Gunslinging . | . . . . . . Exploded 4 | . . . 4 . 2 Melee . | . . . . . . Uniques/NPCs Destroyed . | . . . . . . Combat | -11 -10 -10 -9 -9 -9 -------- Run | Scr Mat Min Mat Min Exi Damage Taken 3531 | . 611 452 1004 98 1366 Core 607 | . 115 74 218 . 200 Absorbed by Shields . | . . . . . . Core Remaining (%) 62 | 100 . 24 . . . Volleys Fired 206 | . 73 26 69 9 29 Largest 3 | . 2 2 3 3 3 Hottest 66 | . 40 40 63 63 66 Shots Fired 469 | . 146 51 186 27 59 Gun 428 | . 146 51 172 27 32 Cannon . | . . . . . . Launcher 13 | . . . 10 . 3 Special 28 | . . . 4 . 24 Kinetic 428 | . 146 51 172 27 32 Thermal 28 | . . . 4 . 24 Explosive 13 | . . . 10 . 3 Electromagnetic . | . . . . . . Robot Hit Streak 16 | . 16 8 11 14 8 Robot Miss Streak 4 | . 4 3 3 2 2 Penetration Max . | . . . . . . Secondary Targets 4 | . . 1 1 2 . Max Gunslinging Chain 1 | . . 1 1 1 . Shots Hit Robots 304 | . 92 37 103 20 52 Core Hits 162 | . 40 21 81 7 13 Critical Kills 1 | . . 1 . . . Critical Parts Destroyed 2 | . 1 . 1 . . Critical Strikes 4 | . 1 1 1 . 1 Destroy 3 | . 1 1 1 . . Sever 1 | . . . . . 1 Melee Attacks 17 | . . . . . 17 Impact . | . . . . . . Slashing 17 | . . . . . 17 Piercing . | . . . . . . Sneak Attacks . | . . . . . . Combat Hostiles . | . . . . . . Follow-up Attacks . | . . . . . . Damage Inflicted 5202 | . 947 339 2779 220 917 Guns 2869 | . 947 339 1081 220 282 Cannons . | . . . . . . Explosions 1906 | . . . 1687 . 219 Melee 402 | . . . . . 402 Ramming . | . . . . . . Kinetic 2869 | . 947 339 1081 220 282 Thermal 25 | . . . 11 . 14 Explosive 1857 | . . . 1638 . 219 Electromagnetic 49 | . . . 49 . . Impact . | . . . . . . Slashing 402 | . . . . . 402 Piercing . | . . . . . . Highest Corruption . | . . . . . . Average Corruption . | . . . . . . Corruption Purged . | . . . . . . Overload Shots . | . . . . . . Overflow Damage 108 | . . . 76 . 32 Projectiles . | . . . . . . Explosions 108 | . . . 76 . 32 Melee . | . . . . . . Knockbacks . | . . . . . . Impact . | . . . . . . Kinetic . | . . . . . . Secondary . | . . . . . . Self-Inflicted Damage 78 | . . . 78 . . Shots 4 | . . . 4 . . Rammed . | . . . . . . Targets Rammed . | . . . . . . Kicked . | . . . . . . Crushed . | . . . . . . Highest Temperature 252 | . 57 88 252 193 69 Average Temperature 57 | . 13 31 85 78 22 Received Heat Transfer 867 | . 228 258 330 51 . Siege Activations . | . . . . . . Robots Corrupted . | . . . . . . Combat Hostiles . | . . . . . . Parts Fried . | . . . . . . Impact Corruptions . | . . . . . . Robots Melted . | . . . . . . Combat Hostiles . | . . . . . . Parts Melted . | . . . . . . Heat Transferred 163 | . . . 37 . 126 Parts Sabotaged . | . . . . . . Parts Stolen . | . . . . . . Parts Stripped . | . . . . . . Power Chain Reactions . | . . . . . . Missiles Intercepted . | . . . . . . Alert | -11 -10 -10 -9 -9 -9 ------- Run | Scr Mat Min Mat Min Exi Peak Influence 741 | . 285 312 741 363 . Initial 288 | . . 111 70 288 . Average 213 | . 132 196 295 306 . Maximum Alert Level 3 | . 1 1 3 1 . Low Security (%) 57 | 100 80 53 42 . . Level 1 31 | . 19 46 26 100 . Level 2 9 | . . . 26 . . Level 3 1 | . . . 4 . . Level 4 . | . . . . . . Level 5 . | . . . . . . High Security . | . . . . . . Max Security . | . . . . . . Squads Dispatched 10 | . 4 . 6 . . Investigation 3 | . 2 . 1 . . Extermination . | . . . . . . Reinforcement 6 | . 2 . 4 . . Assault 1 | . . . 1 . . Garrison . | . . . . . . Intercept . | . . . . . . Construction Impeded 1 | . . . 1 . . Haulers Reinforced . | . . . . . . Active Scanning Responses . | . . . . . . Cargo Convoy Interrupts . | . . . . . . Stealth | -11 -10 -10 -9 -9 -9 --------- Run | Scr Mat Min Mat Min Exi Distress Signals 5 | . 3 . 2 . . Communications Jammed . | . . . . . . Distress Signals . | . . . . . . Times Spotted 98 | . 32 13 43 4 6 Peak Tracking Total 9 | . 6 2 6 3 9 Tactical Retreats 4 | . 3 . 1 . . Traps | -11 -10 -10 -9 -9 -9 ------- Run | Scr Mat Min Mat Min Exi Traps Triggered 3 | . 2 . 1 . . Indirectly 1 | . . . 1 . . Trap Hack Attempts . | . . . . . . Triggered . | . . . . . . Disarmed . | . . . . . . Reprogrammed . | . . . . . . Reused . | . . . . . . Traps Extracted . | . . . . . . Installed . | . . . . . . Triggered . | . . . . . . Exploded 3 | . . . . . 3 Machines | -11 -10 -10 -9 -9 -9 ---------- Run | Scr Mat Min Mat Min Exi Machines Disabled 10 | . 1 1 5 . 3 Max in Single Turn 2 | . 1 1 2 . 2 Machines Sabotaged . | . . . . . . Garrisons Compromised . | . . . . . . Overloaded Fab Kills . | . . . . . . Hacking | -11 -10 -10 -9 -9 -9 --------- Run | Scr Mat Min Mat Min Exi Machines Accessed 12 | . 6 . 4 . 2 Terminals 7 | . 5 . 2 . . Fabricators . | . . . . . . Repair Stations 1 | . 1 . . . . Recycling Units 1 | . . . 1 . . Scanalyzers 1 | . . . 1 . . Garrison Access . | . . . . . . Total Hacks 32 | . 17 . 13 . 2 Successful 25 | . 12 . 11 . 2 Failed 6 | . 4 . 2 . . Catastrophic 1 | . 1 . . . . Database Lockouts 1 | . 1 . . . . Manual 14 | . 7 . 6 . 1 Terminals 19 | . 12 . 7 . . Fabricators . | . . . . . . Repair Stations 5 | . 5 . . . . Recycling Units 1 | . . . 1 . . Scanalyzers 5 | . . . 5 . . Garrison Access . | . . . . . . Terminal Hacks 14 | . 7 . 5 . 2 Record 1 | . . . . . 1 Part Schematic 1 | . 1 . . . . Robot Analysis 3 | . 1 . 2 . . Prototype ID Bank 1 | . 1 . . . . Terminal Index 2 | . 1 . 1 . . Locate Traps 2 | . 1 . 1 . . Hauler Manifests 1 | . 1 . . . . Zone Layout 2 | . 1 . 1 . . EX-Prototype ID Bank 1 | . . . . . 1 Fabricator Hacks . | . . . . . . Repair Station Hacks 5 | . 5 . . . . Scan Component 3 | . 3 . . . . Repair 2 | . 2 . . . . Recycling Unit Hacks . | . . . . . . Scanalyzer 5 | . . . 5 . . Insert Component 2 | . . . 2 . . Analyze 3 | . . . 3 . . Garrison Access Hacks . | . . . . . . Unauthorized Hacks 1 | . . . 1 . . Terminals . | . . . . . . Fabricators . | . . . . . . Repair Stations . | . . . . . . Recycling Units 1 | . . . 1 . . Tunnel 1 | . . . 1 . . Scanalyzers . | . . . . . . Garrison Access . | . . . . . . Data Cores Recovered . | . . . . . . Used . | . . . . . . Hacking Detections 7 | . 4 . 3 . . Full Trace Events . | . . . . . . Feedback Events . | . . . . . . Feedback Blocked . | . . . . . . Robot Schematics Acquired . | . . . . . . Robots Built . | . . . . . . Authchips . | . . . . . . Time . | . . . . . . Total Robot Build Rating . | . . . . . . Part Schematics Acquired 2 | . 1 . 1 . . Parts Built . | . . . . . . Authchips . | . . . . . . Time . | . . . . . . Total Part Build Rating . | . . . . . . Parts Repaired 2 | . 2 . . . . Time 52 | . 52 . . . . Parts Recycled . | . . . . . . Recycled Matter . | . . . . . . Retrieved Matter . | . . . . . . Retrieved Components . | . . . . . . Parts Scanalyzed 1 | . . . 1 . . Part Schematics Acquired 1 | . . . 1 . . Parts Damaged . | . . . . . . Bothacking | -11 -10 -10 -9 -9 -9 ------------ Run | Scr Mat Min Mat Min Exi Used RIF Installer . | . . . . . . Robots Hacked . | . . . . . . Non-combat . | . . . . . . Combat . | . . . . . . Robot Hacks Applied . | . . . . . . Relay Couplers Released . | . . . . . . Fabnet Peak Effective % . | . . . . . . Robots Rewired . | . . . . . . Allies Hacked . | . . . . . . Hacks Repelled . | . . . . . . Allies | -11 -10 -10 -9 -9 -9 -------- Run | Scr Mat Min Mat Min Exi Total Allies 1 | . . 1 . . . Largest Group 1 | . . 1 . . . Highest-Rated Group 31 | . . 31 . . . Highest-Rated Ally 31 | . . 31 . . . Total Orders . | . . . . . . Ally Attacks 7 | . . 7 . . . Total Damage 64 | . . 64 . . . Kills 2 | . . 2 . . . Allies Corrupted . | . . . . . . Allies Melted . | . . . . . . Intel | -11 -10 -10 -9 -9 -9 ------- Run | Scr Mat Min Mat Min Exi Robot Analysis Total 3 | . 1 . 2 . . Derelict Logs Recovered 1 | . . 1 . . . Drone Launches . | . . . . . . Drone Recoveries . | . . . . . . Exploration | -11 -10 -10 -9 -9 -9 ------------- Run | Scr Mat Min Mat Min Exi Turns Passed 3623 | 6 1025 564 977 143 908 Spaces Moved 1620 | 1 453 296 351 84 435 Core . | . . . . . . Treads 984 | 1 453 296 228 . 6 Legs . | . . . . . . Wheels 636 | . . . 123 84 429 Hover . | . . . . . . Flight . | . . . . . . Fastest Speed 135 | 160 160 160 135 135 135 Average Speed 165 | 160 160 160 191 135 160 Slowest Speed 240 | 160 160 160 240 135 240 Overloaded Moves . | . . . . . . Propulsion Burnouts . | . . . . . . Robots Hopped . | . . . . . . Cave-ins Triggered . | . . . . . . Exploration Rate (%) 47 | 2 88 67 51 14 64 Regions Visited 5 Branch Regions 3 Pre-discovered Areas 2 | . . . 1 . 1 Known Exits Taken . | . . . . . . Unknown Exits Taken 5 | 1 1 1 1 1 . Scrap Searched 2 | . . 2 . . . Spaces Dug . | . . . . . . Terrain Destroyed 64 | . 5 . 45 . 14 Melee . | . . . . . . Projectile . | . . . . . . AOE 64 | . 5 . 45 . 14 Terrain Rammed . | . . . . . . Walls Destroyed . | . . . . . . Machines Disabled . | . . . . . . Actions | -11 -10 -10 -9 -9 -9 --------- Run | Scr Mat Min Mat Min Exi Total 2150 | 8 619 343 533 98 549 Wait 190 | . 65 14 71 . 40 Move 1615 | . 452 295 350 83 435 Hop . | . . . . . . Pick Up 33 | . 15 . 12 . 6 Fast Attach 8 | . 4 1 2 1 . Attach 18 | 3 . 2 4 . 9 Detach . | . . . . . . Swap 29 | . 6 3 11 2 7 Drop 34 | 5 4 2 14 3 6 Fire 206 | . 73 26 69 9 29 Melee 17 | . . . . . 17 Ram . | . . . . . . Kick . | . . . . . . Crush . | . . . . . . Escape Stasis . | . . . . . . Rewire . | . . . . . . Trap . | . . . . . . Miscellaneous . | . . . . . . Route ------- -11/Scrapyard -10/Materials (discovered 3 exits: *Mat x2 / [*Min]) -10/Mines (discovered 2 exits: *Mat x2) -9/Materials -9/Mines -9/Exiles History --------- Turn | Location | Event 7 | -11/Scrapyard | Discovered new exit (range 0) 7 | -11/Scrapyard | Entered Materials 69 | -10/Materials | Central database locked down 266 | -10/Materials | Discovered new exit (range 6) 306 | -10/Materials | Discovered new exit (range 14) 315 | -10/Materials | Build established: Mutant 565 | -10/Materials | Repaired Lgt. Treads 594 | -10/Materials | Repaired Ion Engine 734 | -10/Materials | Discovered new exit (range 15) 1032 | -10/Materials | Entered Mines 1047 | -10/Mines | Core integrity fell below 50% 1195 | -10/Mines | Discovered new exit (range 9) 1198 | -10/Mines | Received a Mining Laser from a helpful Derelict 1588 | -10/Mines | Discovered new exit (range 5) 1596 | -10/Mines | Entered Materials 1596 | -9/Materials | Evolved 2 slots: Utility x1, Weapon x1 1968 | -9/Materials | Build established: Scavenger-Tank 2335 | -9/Materials | Discovered new exit (range 11) 2396 | -9/Materials | First assault squad dispatched 2505 | -9/Materials | Core integrity fell below 50% 2546 | -9/Materials | Destroyed 7 combat bots 2573 | -9/Materials | Entered Mines 2578 | -9/Mines | Joined a pair of Derelicts in attacking an 0b10 outpost 2579 | -9/Mines | Met a Derelict bent on vengeance 2711 | -9/Mines | Deemed a non-threat by the Exiles lab entrance 2711 | -9/Mines | Discovered new exit (range 5) 2716 | -9/Mines | Entered Exiles 2756 | -9/Exiles | Met 8R-AWN 2777 | -9/Exiles | Met EX-HEX 3051 | -9/Exiles | Met EX-DEC 3061 | -9/Exiles | Learned location of Zion (-7) 3095 | -9/Exiles | Met EX-BIN 3115 | -9/Exiles | Aligned with FarCom system 3117 | -9/Exiles | Given EX-Vault access code 3156 | -9/Exiles | Opened EX-Vault 3171 | -9/Exiles | Found Chronowheel 3207 | -9/Exiles | Warned to stay clear of 0b10 Research branches 3385 | -9/Exiles | Attacked by the Exiles 3565 | -9/Exiles | Core integrity fell below 20% 3624 | -9/Exiles | Destroyed by 8R-AWN with 8R-AWN's Boregun Last Messages --------------- 03607_ HV Slug penetrates Wall. 03612_ Penetrated by HV Slug. 03612_ Critical hit (Destroy). 03612_ HV Slug penetrates Wall. 03612_ Penetrated by HV Slug. 03612_ HV Slug penetrates Wall. 03615_ Wall collapses. 03616_ HV Slug penetrates Wall. 03616_ Penetrated by HV Slug. 03616_ HV Slug penetrates Earth. 03620_ Penetrated by HV Slug. 03620_ Critical hit (Destroy). 03620_ HV Slug penetrates Earth. 03620_ Penetrated by HV Slug. 03620_ Critical hit (Destroy). 03620_ HV Slug penetrates Earth. 03624_ 8R-AWN Prototype Leg severed. 03624_ Penetrated by HV Slug. 03624_ HV Slug penetrates Earth. 03624_ Penetrated by HV Slug. Map ----- +----------------------------------------------------+ | ?????????????????????????????????????????????????? | | ?????????????????????????????????????????????????? | | ?????????????????????????????????????????????????? | | ?????????????????????????????????????????????????? | | ?????????????????????????????????????????????????? | | ?????????????????????????????????????????????????? | | ?????????????????????????????????????????????????? | | ?????????????????????????????????????????????????? | | ?????????????????????????????????????????????????? | | ?????????????????????????????????????????????????? | | ?????????????????????????????????????????????????? | | ?????????????????????????????????????????????????? | | ?????????????????????????????????????????????????? | | ?????????????????????????????????????????????????? | | ???????????? ??????????????#######???????????????? | | ??????????? ######???????# !! "#???????????????? | | ??????????? #" #????#?#! "#???????????????? | | ??????????? ???# ## "#???????????????? | | ???????????" #??# ## ""#????????????#### | | ???????????" ###;#" ""#???????????? "" | | ????????????# ;#" ""#????????????" "" | | ?????????????# ;"" ###???????????"" | | ????????????????# ##????????????"" | | ???????????????????# ##????????????"" | | ????????????????###### # #????????? " | | ?????????????####;;;; @ # #?????????" " | | ?????????????# !!""""" g #????????# # | | ?????????????#! # ####???### # | | ?????????????#! ! ## ""#####X# # | | ?????????????#! ;#?## % | | ?????????????# !""" ""##;#??# # | | ?????????????#####;###?# #??##; % | | ????????????????# #????# #?????;## * | | ???????????????# #?????# #?????? ##; | | ??????????????# #??????# #??????? ?## | | ?????????????? #???????? #????????#?## | | ?????????????##????????? #???????????##" | | ???????????????????????? #????????????#""" | | ???????????????????????? ?????????????#" | | ???????????????????????? ????????????#"" | | ???????????????????????? ????????????#""" | | ???????????????????????? ????????????""" | | ?????????????????????????????????????""" | | ??????????????????????????????????????" | | ??????????????????????????????????????"" | | ?????????????????????????????????????"" | | ??????????????????????????????????????"" | | ???????????????????????????????????????""" | | ???????????????????????????????????????? | | ?????????????????????????????????????????? | +----------------------------------------------------+ Best States ------------- Heat Dissipation 28 Energy Generation 18 Energy Capacity 280 Matter Stores 300 Matter Capacity 300 Sight Range 16 Terrain Scan Density 10 Armor Coverage 375 Evasion (%) 40 Recoil Reduction 2 Item Schematics ----------------- Hcp. Storage Unit | -10/Materials | Hacked Hrd. Light Armor Plating | -9/Materials | Scanalyzed Robot Schematics ------------------ None Fabricated ------------ Nothing Alien Tech Used ----------------- None Achievements -------------- None Challenges ------------ None Game ------ Seed RagnarokThrowingStripper Manual? 0 Play Time 00:21:59 Cumulative 531.7 hours Start 2021.12.03 @ 00:04:17 End 2021.12.03 @ 00:28:17 Sessions 1 Manual Loads 0 Difficulty Rogue Special Mode None Game No. 519 Rogue 519 Adventurer 0 Explorer 0 Win Type - Total 15 Types 9/2/3/1/0/0/0/0/0 Lore% 86 Gallery% 95 Achievement% 74 Wizard Run 0 Options --------- ASCII 0 Keyboard 0 Movement Mouse Keybinds 1 Fullscreen 2 Font 24/Smallcaps Map View 76x50 Tactical HUD 1 Map Filters NONE Filters NONE Steam 1 RUN: a1e5f3cd-bf5c-4280-9229-d5493ae77041